[Event "*** Titled Tuesday Blitz"]
[Site "Chess.com"]
[Date "2021.03.30"]
[Round "4"]
[White "Danny_Billiards"]
[Black "QuintilianoR"]
[Result "1/2-1/2"]
[WhiteElo "2574"]
[BlackElo "2734"]
[TimeControl "180+1"]
[EndTime "10:39:39 PDT"]
[Termination "Game drawn by repetition"]

1. d4 {[%clk 0:03:00.9]} 1... d5 {[%clk 0:02:59.2]} 2. c4 {[%clk 0:03:00.4]}
2... c6 {[%clk 0:02:59.8]} 3. Nf3 {[%clk 0:02:59.6]} 3... Nf6 {[%clk 0:03:00.2]}
4. cxd5 {[%clk 0:03:00.3]} 4... cxd5 {[%clk 0:03:00.4]} 5. Nc3 {[%clk
0:03:01.2]} 5... Nc6 {[%clk 0:03:00.3]} 6. Bf4 {[%clk 0:03:01.8]} 6... a6 {[%clk
0:03:00.5]} 7. e3 {[%clk 0:03:01.5]} 7... Bg4 {[%clk 0:03:00.7]} 8. h3 {[%clk
0:03:01.4]} 8... Bxf3 {[%clk 0:03:00.4]} 9. Qxf3 {[%clk 0:03:02.3]} 9... e6
{[%clk 0:03:00.6]} 10. Be2 {[%clk 0:03:02.7]} 10... Rc8 {[%clk 0:03:00.4]} 11.
O-O {[%clk 0:03:01.8]} 11... Be7 {[%clk 0:02:58.9]} 12. Rfc1 {[%clk 0:02:51]}
12... O-O {[%clk 0:02:57.5]} 13. Na4 {[%clk 0:02:49.7]} 13... Nd7 {[%clk
0:02:57.3]} 14. Nc5 {[%clk 0:02:15.5]} 14... Nxc5 {[%clk 0:02:24.4]} 15. dxc5
{[%clk 0:02:16.4]} 15... e5 {[%clk 0:02:25.3]} 16. Bg3 {[%clk 0:02:05.9]} 16...
e4 {[%clk 0:02:24]} 17. Qf4 {[%clk 0:01:48.2]} 17... Bf6 {[%clk 0:02:17.1]} 18.
Rab1 {[%clk 0:01:42.5]} 18... Be5 {[%clk 0:02:17]} 19. Qh4 {[%clk 0:01:23.2]}
19... Qxh4 {[%clk 0:01:58.1]} 20. Bxh4 {[%clk 0:01:24.1]} 20... h6 {[%clk
0:01:58.6]} 21. f4 {[%clk 0:00:57]} 21... exf3 {[%clk 0:01:22.2]} 22. Bxf3
{[%clk 0:00:52.9]} 22... d4 {[%clk 0:01:18.4]} 23. Bf2 {[%clk 0:00:50.5]} 23...
Rfd8 {[%clk 0:01:13.2]} 24. exd4 {[%clk 0:00:32.3]} 24... Bxd4 {[%clk
0:01:10.3]} 25. Rd1 {[%clk 0:00:20.6]} 25... Bxf2+ {[%clk 0:00:45]} 26. Kxf2
{[%clk 0:00:21.5]} 26... Ne5 {[%clk 0:00:44.4]} 27. Bxb7 {[%clk 0:00:19.2]}
27... Rxd1 {[%clk 0:00:43.4]} 28. Rxd1 {[%clk 0:00:20.1]} 28... Rxc5 {[%clk
0:00:43.3]} 29. Bxa6 {[%clk 0:00:20.5]} 29... Rc2+ {[%clk 0:00:43.3]} 30. Kg1
{[%clk 0:00:20.8]} 30... Rxb2 {[%clk 0:00:43.2]} 31. a4 {[%clk 0:00:17.2]} 31...
Ra2 {[%clk 0:00:39.3]} 32. Bb5 {[%clk 0:00:17.2]} 32... g5 {[%clk 0:00:35.2]}
33. Re1 {[%clk 0:00:16.5]} 33... Ng6 {[%clk 0:00:34]} 34. Re2 {[%clk 0:00:14.1]}
34... Ra1+ {[%clk 0:00:33.7]} 35. Kh2 {[%clk 0:00:14.4]} 35... Kg7 {[%clk
0:00:34.2]} 36. g3 {[%clk 0:00:11.9]} 36... f6 {[%clk 0:00:31.2]} 37. Rc2 {[%clk
0:00:11.4]} 37... Ne5 {[%clk 0:00:31]} 38. Kg2 {[%clk 0:00:07.8]} 38... h5
{[%clk 0:00:28.2]} 39. Be8 {[%clk 0:00:07.1]} 39... h4 {[%clk 0:00:26.3]} 40.
gxh4 {[%clk 0:00:08]} 40... gxh4 {[%clk 0:00:27.1]} 41. Bb5 {[%clk 0:00:08.1]}
41... Ra3 {[%clk 0:00:26.8]} 42. Kh2 {[%clk 0:00:07.7]} 42... Ng6 {[%clk
0:00:26.3]} 43. Rg2 {[%clk 0:00:07.5]} 43... Kh6 {[%clk 0:00:24.5]} 44. Be8
{[%clk 0:00:07.4]} 44... Nf4 {[%clk 0:00:23.5]} 45. Rg4 {[%clk 0:00:07.5]} 45...
Ra2+ {[%clk 0:00:12.5]} 46. Kh1 {[%clk 0:00:07.5]} 46... Ra1+ {[%clk 0:00:13.1]}
47. Kh2 {[%clk 0:00:07.5]} 47... Ra2+ {[%clk 0:00:13.5]} 48. Kh1 {[%clk
0:00:08.1]} 48... Ra1+ {[%clk 0:00:13.9]} 49. Kh2 {[%clk 0:00:08.6]} 49... Ra2+
{[%clk 0:00:14.1]} 1/2-1/2

[Event "*** Titled Tuesday Blitz"]
[Site "Chess.com"]
[Date "2021.03.30"]
[Round "4"]
[White "Tsyhanchuk_Stanislav"]
[Black "paulrusan"]
[Result "1-0"]
[WhiteElo "2483"]
[BlackElo "2300"]
[TimeControl "180+1"]
[EndTime "10:39:39 PDT"]
[Termination "Tsyhanchuk_Stanislav won on time"]

1. e4 {[%clk 0:03:00.9]} 1... c5 {[%clk 0:01:50.6]} 2. Nf3 {[%clk 0:02:58.9]}
2... Nc6 {[%clk 0:01:50.2]} 3. d4 {[%clk 0:02:58.8]} 3... cxd4 {[%clk
0:01:50.1]} 4. Nxd4 {[%clk 0:02:59.7]} 4... e5 {[%clk 0:01:49]} 5. Nb5 {[%clk
0:02:59.4]} 5... d6 {[%clk 0:01:47]} 6. N1c3 {[%clk 0:02:58.3]} 6... a6 {[%clk
0:01:46.9]} 7. Na3 {[%clk 0:02:58]} 7... b5 {[%clk 0:01:47.8]} 8. Nd5 {[%clk
0:02:57.2]} 8... Nf6 {[%clk 0:01:47.6]} 9. Bg5 {[%clk 0:02:55.4]} 9... Be7
{[%clk 0:01:47.5]} 10. Bxf6 {[%clk 0:02:54.9]} 10... Bxf6 {[%clk 0:01:47.3]} 11.
c3 {[%clk 0:02:55.4]} 11... Rb8 {[%clk 0:01:45.5]} 12. Nc2 {[%clk 0:02:54.9]}
12... O-O {[%clk 0:01:45.3]} 13. a4 {[%clk 0:02:55.5]} 13... bxa4 {[%clk
0:01:44.7]} 14. Rxa4 {[%clk 0:02:56.4]} 14... Rxb2 {[%clk 0:01:43.8]} 15. Bxa6
{[%clk 0:02:56.2]} 15... Bd7 {[%clk 0:01:41.3]} 16. Ra1 {[%clk 0:02:50.6]} 16...
Bg5 {[%clk 0:01:40.8]} 17. O-O {[%clk 0:02:47.7]} 17... f5 {[%clk 0:01:38.9]}
18. exf5 {[%clk 0:02:46.7]} 18... Bxf5 {[%clk 0:01:38.8]} 19. Nce3 {[%clk
0:02:47.2]} 19... Be6 {[%clk 0:01:35.3]} 20. Rb1 {[%clk 0:02:37.4]} 20... Rxb1
{[%clk 0:01:15.1]} 21. Qxb1 {[%clk 0:02:38.3]} 21... Qa5 {[%clk 0:01:06.2]} 22.
Bc4 {[%clk 0:02:36.2]} 22... Bxe3 {[%clk 0:01:00.5]} 23. Nxe3 {[%clk 0:02:30.3]}
23... Bxc4 {[%clk 0:00:59.5]} 24. Nxc4 {[%clk 0:02:31.2]} 24... Qxc3 {[%clk
0:01:00.1]} 25. Nxd6 {[%clk 0:02:29]} 25... Nd4 {[%clk 0:00:54.2]} 26. h3 {[%clk
0:01:32.1]} 26... h6 {[%clk 0:00:51.3]} 27. Ne4 {[%clk 0:01:28.2]} 27... Qc2
{[%clk 0:00:47.7]} 28. Qxc2 {[%clk 0:01:19.8]} 28... Nxc2 {[%clk 0:00:47.6]} 29.
Rc1 {[%clk 0:01:18.9]} 29... Rf4 {[%clk 0:00:45.5]} 30. f3 {[%clk 0:01:15.9]}
30... Nd4 {[%clk 0:00:45.4]} 31. Rc5 {[%clk 0:01:09.3]} 31... Rf5 {[%clk
0:00:42.7]} 32. Kf2 {[%clk 0:01:06.7]} 32... Ne6 {[%clk 0:00:38.7]} 33. Ra5
{[%clk 0:01:03.2]} 33... Ng5 {[%clk 0:00:38.5]} 34. Ng3 {[%clk 0:00:49.3]} 34...
Rf8 {[%clk 0:00:27]} 35. Rxe5 {[%clk 0:00:48.2]} 35... Kh7 {[%clk 0:00:25.5]}
36. h4 {[%clk 0:00:45.3]} 36... Nf7 {[%clk 0:00:24.4]} 37. Rd5 {[%clk
0:00:45.5]} 37... Re8 {[%clk 0:00:22.8]} 38. Rd7 {[%clk 0:00:39.7]} 38... Ne5
{[%clk 0:00:20.4]} 39. Rc7 {[%clk 0:00:33.7]} 39... Nd3+ {[%clk 0:00:19.9]} 40.
Kg1 {[%clk 0:00:34]} 40... Nf4 {[%clk 0:00:20.1]} 41. Ne4 {[%clk 0:00:29.4]}
41... Kg6 {[%clk 0:00:08.7]} 42. Kf2 {[%clk 0:00:26.4]} 42... Ne6 {[%clk
0:00:08]} 43. Rc6 {[%clk 0:00:25.5]} 43... Kh7 {[%clk 0:00:05.1]} 44. h5 {[%clk
0:00:23.8]} 44... Nd4 {[%clk 0:00:01.3]} 45. Rc7 {[%clk 0:00:22.7]} 1-0

[Event "*** Titled Tuesday Blitz"]
[Site "Chess.com"]
[Date "2021.03.30"]
[Round "4"]
[White "Keranke"]
[Black "BogdanDeac"]
[Result "1-0"]
[WhiteElo "2803"]
[BlackElo "3013"]
[TimeControl "180+1"]
[EndTime "10:39:40 PDT"]
[Termination "Keranke won on time"]

1. d4 {[%clk 0:03:00.9]} 1... Nf6 {[%clk 0:02:54.6]} 2. Bf4 {[%clk 0:02:57.3]}
2... d5 {[%clk 0:02:52.5]} 3. e3 {[%clk 0:02:57.5]} 3... c5 {[%clk 0:02:52.6]}
4. Nc3 {[%clk 0:02:57.7]} 4... cxd4 {[%clk 0:02:44.8]} 5. exd4 {[%clk
0:02:58.6]} 5... a6 {[%clk 0:02:39.2]} 6. Nf3 {[%clk 0:02:53.2]} 6... Nc6 {[%clk
0:02:38.3]} 7. Ne5 {[%clk 0:02:53.2]} 7... e6 {[%clk 0:02:37.7]} 8. Nxc6 {[%clk
0:02:50.9]} 8... bxc6 {[%clk 0:02:38.6]} 9. Na4 {[%clk 0:02:51.5]} 9... Bd6
{[%clk 0:02:37.5]} 10. Bxd6 {[%clk 0:02:50.8]} 10... Qxd6 {[%clk 0:02:38.4]} 11.
Bd3 {[%clk 0:02:51.2]} 11... O-O {[%clk 0:02:17.8]} 12. O-O {[%clk 0:02:49.2]}
12... e5 {[%clk 0:02:17.4]} 13. dxe5 {[%clk 0:02:46.9]} 13... Qxe5 {[%clk
0:02:18.3]} 14. Qf3 {[%clk 0:02:30.5]} 14... Qd4 {[%clk 0:01:16.7]} 15. b3
{[%clk 0:02:29.7]} 15... Bg4 {[%clk 0:01:16.5]} 16. Qg3 {[%clk 0:02:27.5]} 16...
Rfe8 {[%clk 0:01:16]} 17. c3 {[%clk 0:02:03.1]} 17... Qa7 {[%clk 0:01:11.7]} 18.
Qd6 {[%clk 0:01:59]} 18... Re6 {[%clk 0:00:54.1]} 19. Qc5 {[%clk 0:01:58.6]}
19... Qc7 {[%clk 0:00:48.4]} 20. f3 {[%clk 0:01:55.5]} 20... Bh5 {[%clk
0:00:47.4]} 21. Rfe1 {[%clk 0:01:45.6]} 21... Nd7 {[%clk 0:00:42.7]} 22. Qd4
{[%clk 0:01:42.1]} 22... Bg6 {[%clk 0:00:20.4]} 23. Rxe6 {[%clk 0:01:20.8]}
23... fxe6 {[%clk 0:00:19.6]} 24. Bxg6 {[%clk 0:01:21.4]} 24... hxg6 {[%clk
0:00:19.2]} 25. c4 {[%clk 0:01:14.7]} 25... e5 {[%clk 0:00:17.5]} 26. Qg4 {[%clk
0:01:14.6]} 26... Qd6 {[%clk 0:00:16.5]} 27. Rd1 {[%clk 0:01:07.6]} 27... Rd8
{[%clk 0:00:15]} 28. Kh1 {[%clk 0:01:01.3]} 28... Kf7 {[%clk 0:00:13.8]} 29. Nc3
{[%clk 0:01:01]} 29... Nf6 {[%clk 0:00:13.6]} 30. Qg3 {[%clk 0:00:55.6]} 30...
Qe6 {[%clk 0:00:09.5]} 31. cxd5 {[%clk 0:00:51.9]} 31... cxd5 {[%clk 0:00:10.4]}
32. Re1 {[%clk 0:00:52.3]} 32... Re8 {[%clk 0:00:10.3]} 33. Qf2 {[%clk
0:00:50.8]} 33... Qc6 {[%clk 0:00:09]} 34. Qd2 {[%clk 0:00:46.6]} 34... e4
{[%clk 0:00:08.8]} 35. fxe4 {[%clk 0:00:43.6]} 35... dxe4 {[%clk 0:00:09.7]} 36.
h3 {[%clk 0:00:41.4]} 36... g5 {[%clk 0:00:09.5]} 37. Nd1 {[%clk 0:00:37.7]}
37... g4 {[%clk 0:00:09.5]} 38. Ne3 {[%clk 0:00:33.3]} 38... gxh3 {[%clk
0:00:09.3]} 39. gxh3 {[%clk 0:00:34.2]} 39... Qe6 {[%clk 0:00:08.8]} 40. Qg2
{[%clk 0:00:34]} 40... Rh8 {[%clk 0:00:08.7]} 41. Kh2 {[%clk 0:00:33.7]} 41...
Qe5+ {[%clk 0:00:08.2]} 42. Qg3 {[%clk 0:00:29]} 42... Qb2+ {[%clk 0:00:08.4]}
43. Kh1 {[%clk 0:00:29.4]} 43... Qd4 {[%clk 0:00:02.6]} 44. Nf5 {[%clk
0:00:26.4]} 44... Qd2 {[%clk 0:00:02.8]} 45. Qxg7+ {[%clk 0:00:15.5]} 45... Ke6
{[%clk 0:00:03.2]} 46. Qe7+ {[%clk 0:00:16.1]} 46... Kxf5 {[%clk 0:00:01.9]} 47.
Rf1+ {[%clk 0:00:16.8]} 1-0

[Event "*** Titled Tuesday Blitz"]
[Site "Chess.com"]
[Date "2021.03.30"]
[Round "4"]
[White "elohunter1999"]
[Black "TosicSrecko"]
[Result "1-0"]
[WhiteElo "2535"]
[BlackElo "2311"]
[TimeControl "180+1"]
[EndTime "10:39:40 PDT"]
[Termination "elohunter1999 won by resignation"]

1. d4 {[%clk 0:03:00.9]} 1... e6 {[%clk 0:02:59.9]} 2. e4 {[%clk 0:02:56.4]}
2... d5 {[%clk 0:02:59]} 3. Nd2 {[%clk 0:02:56.4]} 3... c5 {[%clk 0:02:55.5]} 4.
Ngf3 {[%clk 0:02:53.9]} 4... cxd4 {[%clk 0:02:53.3]} 5. Nxd4 {[%clk 0:02:53.5]}
5... Nf6 {[%clk 0:02:53.5]} 6. exd5 {[%clk 0:02:50.3]} 6... Qxd5 {[%clk
0:02:52]} 7. Nb5 {[%clk 0:02:49.9]} 7... Na6 {[%clk 0:02:32.9]} 8. Nc3 {[%clk
0:02:48.8]} 8... Qe5+ {[%clk 0:02:25.7]} 9. Be2 {[%clk 0:02:46.8]} 9... Be7
{[%clk 0:02:14.3]} 10. O-O {[%clk 0:02:42.5]} 10... O-O {[%clk 0:02:13.3]} 11.
Nc4 {[%clk 0:02:22.8]} 11... Qc7 {[%clk 0:01:59]} 12. Qd4 {[%clk 0:01:59]} 12...
Nb4 {[%clk 0:01:44.4]} 13. Bf4 {[%clk 0:01:54.6]} 13... Qd8 {[%clk 0:01:21.6]}
14. Qd1 {[%clk 0:01:29.1]} 14... Nbd5 {[%clk 0:01:18.2]} 15. Nxd5 {[%clk
0:01:27.8]} 15... Nxd5 {[%clk 0:01:17.5]} 16. Bg3 {[%clk 0:01:23.7]} 16... b5
{[%clk 0:01:12.1]} 17. Ne5 {[%clk 0:01:22.5]} 17... Bb7 {[%clk 0:01:12.4]} 18.
Bxb5 {[%clk 0:01:21.4]} 18... Qb6 {[%clk 0:01:00.7]} 19. c4 {[%clk 0:00:58.5]}
19... Nf6 {[%clk 0:00:54.1]} 20. Qb3 {[%clk 0:00:57.9]} 20... Rfd8 {[%clk
0:00:46.5]} 21. Rad1 {[%clk 0:00:54.2]} 21... Ne4 {[%clk 0:00:43.4]} 22. Bc6
{[%clk 0:00:43.8]} 22... Nxg3 {[%clk 0:00:36.7]} 23. hxg3 {[%clk 0:00:41.5]}
23... Qxb3 {[%clk 0:00:18.8]} 24. axb3 {[%clk 0:00:39.3]} 24... Rxd1 {[%clk
0:00:19]} 25. Rxd1 {[%clk 0:00:38.5]} 25... Bxc6 {[%clk 0:00:19.2]} 26. Nxc6
{[%clk 0:00:38.5]} 26... Bf6 {[%clk 0:00:20]} 27. Rd7 {[%clk 0:00:33.1]} 27...
a6 {[%clk 0:00:18.5]} 28. Rd2 {[%clk 0:00:23.1]} 28... g6 {[%clk 0:00:18.3]} 29.
b4 {[%clk 0:00:21.4]} 29... Kg7 {[%clk 0:00:15]} 30. b3 {[%clk 0:00:16.1]} 30...
Rc8 {[%clk 0:00:13.5]} 31. b5 {[%clk 0:00:15.7]} 31... axb5 {[%clk 0:00:14.1]}
32. cxb5 {[%clk 0:00:16.6]} 32... Rc7 {[%clk 0:00:14.8]} 33. Rc2 {[%clk
0:00:15]} 33... Rb7 {[%clk 0:00:15.1]} 34. Rc5 {[%clk 0:00:13.7]} 34... Rb6
{[%clk 0:00:14.7]} 35. b4 {[%clk 0:00:12.8]} 35... Bb2 {[%clk 0:00:12.2]} 36.
Kf1 {[%clk 0:00:12.3]} 36... Bf6 {[%clk 0:00:10.3]} 37. Ke2 {[%clk 0:00:12.2]}
37... Kf8 {[%clk 0:00:09.3]} 38. Kd3 {[%clk 0:00:12.3]} 38... Ke8 {[%clk
0:00:09.3]} 39. Kc4 {[%clk 0:00:12.7]} 39... Kd7 {[%clk 0:00:09.6]} 40. Na5
{[%clk 0:00:11.9]} 40... Rb8 {[%clk 0:00:06.6]} 41. Rc6 {[%clk 0:00:10.7]} 41...
Be7 {[%clk 0:00:05]} 42. Nb3 {[%clk 0:00:10.6]} 42... Ra8 {[%clk 0:00:02.6]} 43.
Nc5+ {[%clk 0:00:10.7]} 43... Ke8 {[%clk 0:00:02.5]} 44. b6 {[%clk 0:00:10.8]}
44... Bf6 {[%clk 0:00:02.6]} 45. b7 {[%clk 0:00:10.5]} 45... Rb8 {[%clk
0:00:03.5]} 46. Rc8+ {[%clk 0:00:10.4]} 1-0

[Event "*** Titled Tuesday Blitz"]
[Site "Chess.com"]
[Date "2021.03.30"]
[Round "4"]
[White "Brave_spirit12"]
[Black "SmallTurtleDuck"]
[Result "0-1"]
[WhiteElo "2559"]
[BlackElo "2346"]
[TimeControl "180+1"]
[EndTime "10:39:42 PDT"]
[Termination "SmallTurtleDuck won by resignation"]

1. e4 {[%clk 0:03:00.9]} 1... c6 {[%clk 0:02:59.4]} 2. Nc3 {[%clk 0:03:00.9]}
2... d5 {[%clk 0:02:59.9]} 3. Nf3 {[%clk 0:03:00.4]} 3... Nf6 {[%clk 0:03:00.4]}
4. e5 {[%clk 0:03:00]} 4... Ne4 {[%clk 0:03:00.8]} 5. Ne2 {[%clk 0:02:59.8]}
5... e6 {[%clk 0:02:47.8]} 6. d4 {[%clk 0:02:55.3]} 6... f6 {[%clk 0:02:47]} 7.
c3 {[%clk 0:02:53.8]} 7... fxe5 {[%clk 0:02:44.2]} 8. Nxe5 {[%clk 0:02:53.9]}
8... Bd6 {[%clk 0:02:35.9]} 9. Ng3 {[%clk 0:02:53.1]} 9... Nf6 {[%clk
0:02:27.2]} 10. Bd3 {[%clk 0:02:51.1]} 10... Nbd7 {[%clk 0:02:22.7]} 11. Bf4
{[%clk 0:02:42.6]} 11... Qc7 {[%clk 0:02:10.9]} 12. Qe2 {[%clk 0:02:33.5]} 12...
Nb6 {[%clk 0:01:55.6]} 13. Nh5 {[%clk 0:02:26.5]} 13... Bxe5 {[%clk 0:01:39.9]}
14. Bxe5 {[%clk 0:02:19.4]} 14... Qf7 {[%clk 0:01:40.4]} 15. Nxf6+ {[%clk
0:02:08]} 15... gxf6 {[%clk 0:01:41.3]} 16. Bd6 {[%clk 0:02:05.8]} 16... Bd7
{[%clk 0:01:38.1]} 17. O-O-O {[%clk 0:02:03.6]} 17... O-O-O {[%clk 0:01:37]} 18.
Bg3 {[%clk 0:02:00.3]} 18... Rde8 {[%clk 0:01:21.5]} 19. Rhe1 {[%clk 0:01:56.8]}
19... Qg7 {[%clk 0:01:14]} 20. Qd2 {[%clk 0:01:44.5]} 20... h5 {[%clk
0:01:10.6]} 21. Kb1 {[%clk 0:01:38.8]} 21... h4 {[%clk 0:01:04]} 22. Bf4 {[%clk
0:01:34.1]} 22... e5 {[%clk 0:00:59.3]} 23. dxe5 {[%clk 0:01:29.5]} 23... fxe5
{[%clk 0:01:00.2]} 24. Be3 {[%clk 0:01:30.1]} 24... Qxg2 {[%clk 0:00:54.2]} 25.
Rg1 {[%clk 0:01:24.9]} 25... Qxh2 {[%clk 0:00:51.7]} 26. Rg7 {[%clk 0:01:22.3]}
26... Reg8 {[%clk 0:00:44.6]} 27. Re7 {[%clk 0:01:11.8]} 27... Rg1 {[%clk
0:00:28.5]} 28. Bxb6 {[%clk 0:01:07.3]} 28... axb6 {[%clk 0:00:29.4]} 29. Kc2
{[%clk 0:01:03.5]} 29... Rxd1 {[%clk 0:00:28]} 30. Kxd1 {[%clk 0:01:01.6]} 30...
Qf4 {[%clk 0:00:15.1]} 31. Qe1 {[%clk 0:00:55.5]} 31... h3 {[%clk 0:00:15.4]}
32. Rg7 {[%clk 0:00:12.2]} 32... h2 {[%clk 0:00:14.2]} 33. Qh1 {[%clk
0:00:12.1]} 33... Qxf2 {[%clk 0:00:13.2]} 34. Kc1 {[%clk 0:00:09.1]} 34... Qe3+
{[%clk 0:00:12.5]} 35. Kc2 {[%clk 0:00:08.9]} 35... Qf2+ {[%clk 0:00:13.1]} 36.
Kb3 {[%clk 0:00:09]} 36... Qf6 {[%clk 0:00:13.7]} 37. Rg2 {[%clk 0:00:07.7]}
37... e4 {[%clk 0:00:13.7]} 38. Bc2 {[%clk 0:00:07.9]} 38... Qf3 {[%clk
0:00:12]} 39. Rg8+ {[%clk 0:00:03.2]} 39... Rxg8 {[%clk 0:00:11.7]} 40. Qxh2
{[%clk 0:00:04.1]} 40... Qf7 {[%clk 0:00:10.1]} 41. a4 {[%clk 0:00:03.1]} 41...
d4+ {[%clk 0:00:10.2]} 42. Ka3 {[%clk 0:00:03.7]} 42... d3 {[%clk 0:00:10.5]}
43. Bb3 {[%clk 0:00:03.3]} 43... Qe7+ {[%clk 0:00:10.1]} 44. Ka2 {[%clk
0:00:03]} 44... Be6 {[%clk 0:00:10.3]} 45. Qh3 {[%clk 0:00:01.8]} 45... Bxh3
{[%clk 0:00:09.4]} 0-1

[Event "*** Titled Tuesday Blitz"]
[Site "Chess.com"]
[Date "2021.03.30"]
[Round "4"]
[White "Keks2017"]
[Black "Vaathi_Coming"]
[Result "1/2-1/2"]
[WhiteElo "2481"]
[BlackElo "2794"]
[TimeControl "180+1"]
[EndTime "10:39:42 PDT"]
[Termination "Game drawn by repetition"]

1. g3 {[%clk 0:02:59.8]} 1... Nf6 {[%clk 0:02:59.2]} 2. Bg2 {[%clk 0:02:59.9]}
2... d5 {[%clk 0:02:59.5]} 3. d3 {[%clk 0:03:00]} 3... e5 {[%clk 0:02:58.8]} 4.
Nf3 {[%clk 0:02:58.5]} 4... Nc6 {[%clk 0:02:58.8]} 5. O-O {[%clk 0:02:58.5]}
5... Be7 {[%clk 0:02:58.7]} 6. c3 {[%clk 0:02:58.2]} 6... O-O {[%clk 0:02:58.7]}
7. Qc2 {[%clk 0:02:58.3]} 7... a5 {[%clk 0:02:58.8]} 8. Nbd2 {[%clk 0:02:57.8]}
8... a4 {[%clk 0:02:53.8]} 9. Rb1 {[%clk 0:02:56.3]} 9... b6 {[%clk 0:02:53.1]}
10. b4 {[%clk 0:02:56.1]} 10... axb3 {[%clk 0:02:53.3]} 11. axb3 {[%clk
0:02:56.3]} 11... Bb7 {[%clk 0:02:52.5]} 12. b4 {[%clk 0:02:56.2]} 12... Bd6
{[%clk 0:02:40.4]} 13. e4 {[%clk 0:02:53.3]} 13... dxe4 {[%clk 0:02:37.1]} 14.
dxe4 {[%clk 0:02:47.9]} 14... Ne7 {[%clk 0:02:31.4]} 15. Re1 {[%clk 0:02:47.1]}
15... Ng6 {[%clk 0:02:24.2]} 16. Nc4 {[%clk 0:02:38.2]} 16... h6 {[%clk
0:02:21.6]} 17. Nfd2 {[%clk 0:02:30.9]} 17... Re8 {[%clk 0:02:16.7]} 18. Nf1
{[%clk 0:02:30.5]} 18... Bf8 {[%clk 0:02:13.2]} 19. Nfe3 {[%clk 0:02:28.1]}
19... Qc8 {[%clk 0:02:02.8]} 20. Nf5 {[%clk 0:02:21.5]} 20... Ne7 {[%clk
0:01:52.8]} 21. Nce3 {[%clk 0:02:15.7]} 21... Nxf5 {[%clk 0:01:50.5]} 22. Nxf5
{[%clk 0:02:15.1]} 22... Kh7 {[%clk 0:01:45.5]} 23. Ne3 {[%clk 0:02:12.6]} 23...
g6 {[%clk 0:01:45.1]} 24. Nd5 {[%clk 0:02:12.3]} 24... Nxd5 {[%clk 0:01:30.6]}
25. exd5 {[%clk 0:02:11.6]} 25... c6 {[%clk 0:01:26.7]} 26. dxc6 {[%clk
0:01:48.3]} 26... Bxc6 {[%clk 0:01:27.6]} 27. Bxc6 {[%clk 0:01:47.8]} 27... Qxc6
{[%clk 0:01:28.5]} 28. Qb3 {[%clk 0:01:47.6]} 28... f5 {[%clk 0:01:10.4]} 29. c4
{[%clk 0:01:24.6]} 29... e4 {[%clk 0:00:52.9]} 30. Bb2 {[%clk 0:01:20.8]} 30...
Bg7 {[%clk 0:00:46.6]} 31. Bxg7 {[%clk 0:01:19.6]} 31... Kxg7 {[%clk 0:00:47.5]}
32. Rbc1 {[%clk 0:01:11.8]} 32... Rad8 {[%clk 0:00:46.8]} 33. c5 {[%clk
0:01:08.2]} 33... b5 {[%clk 0:00:44.7]} 34. Rcd1 {[%clk 0:01:03.1]} 34... h5
{[%clk 0:00:41.2]} 35. Rxd8 {[%clk 0:00:56.7]} 35... Rxd8 {[%clk 0:00:42.1]} 36.
Rd1 {[%clk 0:00:56.1]} 36... Rd7 {[%clk 0:00:16.8]} 37. Rxd7+ {[%clk 0:00:52]}
37... Qxd7 {[%clk 0:00:17.7]} 38. Qc3+ {[%clk 0:00:49.4]} 38... Kf7 {[%clk
0:00:17.5]} 39. c6 {[%clk 0:00:44.8]} 39... Qd3 {[%clk 0:00:10.9]} 40. Qc5
{[%clk 0:00:30.3]} 40... Qd1+ {[%clk 0:00:07.2]} 41. Kg2 {[%clk 0:00:30.4]}
41... Qf3+ {[%clk 0:00:04.8]} 42. Kg1 {[%clk 0:00:30.4]} 42... Qd1+ {[%clk
0:00:04.2]} 43. Kg2 {[%clk 0:00:30.3]} 43... h4 {[%clk 0:00:04.5]} 44. gxh4
{[%clk 0:00:20.4]} 44... Qf3+ {[%clk 0:00:04.3]} 45. Kg1 {[%clk 0:00:20.3]}
45... Qg4+ {[%clk 0:00:04.1]} 46. Kf1 {[%clk 0:00:20.3]} 46... Qd1+ {[%clk
0:00:04.2]} 47. Kg2 {[%clk 0:00:20.3]} 47... Qf3+ {[%clk 0:00:03.4]} 48. Kg1
{[%clk 0:00:17.9]} 48... Qd1+ {[%clk 0:00:03.2]} 49. Kg2 {[%clk 0:00:18]}
1/2-1/2